bitfinex/quotes_SOLUSD_20250207
["timestamp","ask_amount","ask_price","bid_price","bid_amount"]
[1738939329680,3.4648,202.03,201.94,23.59763814]
[1738939329888,23.59763814,202.01,201.94,23.59763814]
[1738939330187,23.59763814,202.0,201.93,28.21763814]
[1738939330370,23.59763814,202.0,201.93,33.16973814]
[1738939330563,23.59763814,201.98,201.93,4.62]
[1738939330766,23.59763814,201.99,201.93,4.62]
[1738939331398,23.59763814,202.0,201.93,28.21763814]
[1738939331684,23.59763814,202.0,201.93,33.16973814]
[1738939331895,23.59763814,201.98,201.93,4.62]
[1738939332104,23.59763814,201.99,201.93,4.62]
[1738939332269,27.06303814,202.0,201.93,9.572]
[1738939332472,27.06243814,202.03,201.96,23.59763814]
[1738939332771,0.063,202.04,201.99,23.59763814]
[1738939332988,0.063,202.04,202.0,23.59763814]
[1738939333177,0.063,202.04,202.02,23.59763814]
[1738939333385,0.063,202.04,202.03,23.59763814]
[1738939333683,0.063,202.04,202.03,41.95918667]
[1738939333888,23.66063814,202.04,201.97,23.59763814]
[1738939334291,23.59763814,202.01,201.96,8.1472]
[1738939334594,20.063,202.04,201.94,4.62]
[1738939334775,23.59763814,202.0,201.94,4.62]
[1738939334985,23.59763814,202.02,201.95,23.59763814]
[1738939335187,23.59763814,202.03,201.96,37.00948667]
[1738939335385,0.063,202.04,201.98,23.59763814]
[1738939335584,0.063,202.04,201.99,23.59763814]
[1738939335891,0.063,202.04,202.0,28.54783814]
[1738939336076,0.063,202.04,201.99,13.41184853]
[1738939336786,0.063,202.04,202.0,23.59763814]
[1738939336986,0.063,202.04,202.03,37.00948667]
[1738939337319,0.063,202.04,201.99,160.09763814]
[1738939337486,0.063,202.04,202.0,13.41184853]
[1738939337813,0.063,202.04,202.01,28.54773814]
[1738939338007,0.063,202.04,202.02,13.41184853]
[1738939338211,0.063,202.04,202.03,37.00948667]
[1738939338504,0.063,202.04,202.03,13.41184853]
[1738939338902,0.063,202.04,202.03,37.00948667]
[1738939339902,0.063,202.04,202.03,48.21588667]
[1738939340300,0.063,202.04,202.03,19.66854853]
[1738939340605,0.063,202.04,202.03,6.2567]
[1738939340915,0.063,202.04,202.03,4.62]
[1738939341274,0.063,202.04,201.98,6.6599]
[1738939341481,0.063,202.04,201.96,4.62]
[1738939341482,23.59763814,201.99,201.96,4.62]
[1738939341681,23.59763814,202.01,201.96,4.62]
[1738939341906,0.063,202.04,201.97,13.41184853]
[1738939342122,23.59763814,202.02,201.97,13.41184853]
[1738939342408,23.59763814,202.03,201.98,4.62]
[1738939343118,0.063,202.04,201.99,13.41184853]
[1738939343281,23.66063814,202.04,201.97,23.59763814]
[1738939343485,23.59763814,202.03,201.98,4.62]
[1738939343715,27.12523814,202.04,201.98,4.62]
[1738939344014,23.66063814,202.04,201.98,9.5709]
[1738939344216,23.59763814,202.03,201.98,9.5709]
[1738939344583,23.66063814,202.04,201.98,9.5709]
[1738939345209,23.59763814,202.03,201.98,4.62]
[1738939345392,23.59763814,202.0,201.98,4.62]
[1738939345799,3.5277,202.04,201.98,4.62]
[1738939345800,23.59763814,202.01,201.98,4.62]
[1738939346012,3.4648,202.03,201.98,4.62]
[1738939346013,23.59763814,202.02,201.98,4.62]
[1738939346315,0.063,202.04,201.99,37.00948667]
[1738939346511,0.063,202.04,201.99,23.59763814]
[1738939346716,27.12523814,202.04,201.98,9.5709]
[1738939346889,0.063,202.04,201.98,33.16853814]
[1738939347705,0.063,202.04,202.01,13.41184853]
[1738939348000,0.063,202.04,202.02,41.95948667]
[1738939348201,0.063,202.04,202.03,23.59763814]
[1738939349490,0.063,202.04,202.01,43.59763814]
[1738939349693,0.063,202.04,202.0,23.59763814]
[1738939349898,0.063,202.04,202.02,33.41184853]
[1738939350101,0.063,202.04,202.03,37.00948667]
[1738939350306,0.063,202.04,202.03,44.89268667]
[1738939351397,0.063,202.04,202.03,49.84238667]
[1738939352334,0.063,202.04,202.03,186.34238667]
[1738939352631,0.063,202.04,202.03,498.34238667]
[1738939352840,0.063,202.1,202.07,20.0]
[1738939352994,0.063,202.1,202.09,23.59763814]
[1738939353424,0.063,202.1,202.08,136.5]
[1738939353425,0.063,202.1,202.08,160.09763814]
[1738939354432,0.063,202.1,202.08,136.5]
[1738939355204,0.063,202.1,202.08,160.09763814]
[1738939355405,0.063,202.1,202.08,141.4485]
[1738939355625,0.063,202.1,202.08,165.04613814]
[1738939356231,0.063,202.1,202.08,141.4485]
[1738939356526,23.59763814,202.09,202.05,4.62]
[1738939356729,23.59763814,202.06,202.05,4.62]
[1738939357137,0.063,202.1,202.05,4.62]
[1738939357318,23.59763814,202.08,202.05,4.62]
[1738939357501,23.59763814,202.08,202.0,136.5]
[1738939357502,0.063,202.04,202.03,4.62]
[1738939357704,0.063,202.04,202.03,41.62948667]
[1738939358635,0.063,202.04,202.03,46.57918667]
[1738939360337,0.063,202.04,202.03,13.41184853]
[1738939360516,0.063,202.04,202.03,18.03184853]
[1738939361014,0.063,202.04,202.03,46.57918667]
[1738939363225,0.063,202.04,202.03,41.62948667]
[1738939363429,0.063,202.04,202.03,18.03184853]
[1738939363742,0.063,202.04,202.03,41.62948667]
[1738939364146,0.063,202.04,202.03,46.57918667]
[1738939364645,0.063,202.04,202.03,41.62948667]
[1738939364851,0.063,202.04,202.03,46.57918667]
[1738939365835,0.063,202.04,202.03,18.03184853]
[1738939366234,0.063,202.04,202.03,46.57918667]
[1738939366430,0.063,202.04,202.03,28.21763814]
[1738939366638,0.063,202.04,202.03,4.62]
[1738939366942,0.063,202.04,202.03,41.62948667]
[1738939367628,0.063,202.04,202.03,18.03184853]
[1738939368128,0.063,202.04,202.03,46.57918667]
[1738939369462,0.063,202.04,202.03,47.32137253]
[1738939369626,0.063,202.04,202.03,359.32137253]
[1738939369825,0.063,202.04,202.03,358.57918667]
[1738939370655,0.063,202.04,202.03,46.57918667]
[1738939371644,0.063,202.04,202.03,13.41184853]
[1738939371948,0.063,202.04,202.03,18.01184853]
[1738939373528,0.063,202.04,202.03,334.96154853]
[1738939373855,0.063,202.04,202.03,358.55918667]
[1738939374659,0.063,202.04,202.03,330.01184853]
[1738939374960,0.063,202.04,202.03,18.01184853]
[1738939375262,0.063,202.04,202.03,41.60948667]
[1738939375471,0.063,202.04,202.03,46.55918667]
[1738939375770,0.063,202.04,202.03,183.80135355]
[1738939375935,0.063,202.04,202.03,183.05918667]
[1738939377774,0.063,202.04,202.03,495.05918667]
[1738939378262,0.063,202.04,202.03,183.05918667]
[1738939378766,0.063,202.04,202.03,174.15367245]
[1738939380176,0.063,202.04,202.03,174.18367245]
[1738939381141,0.063,202.1,202.04,13.41184853]
[1738939381359,0.063,202.1,202.06,14.69212392]
[1738939381562,0.063,202.1,202.07,14.69212392]
[1738939381883,0.063,202.1,202.04,14.69212392]
[1738939382063,0.063,202.1,202.03,0.03]
[1738939382268,0.063,202.1,202.04,4.6]
[1738939382767,0.063,202.1,202.05,13.41184853]
[1738939382937,0.063,202.1,202.07,13.41184853]
[1738939383139,0.063,202.1,202.07,28.10397245]
[1738939383538,0.063,202.1,202.09,28.10397245]
[1738939383737,0.063,202.1,202.09,13.41184853]
[1738939384167,0.063,202.1,202.09,18.36004853]
[1738939385041,0.063,202.1,202.09,13.41184853]
[1738939385877,0.063,202.1,202.09,18.36004853]
[1738939386170,0.063,202.1,202.09,13.41184853]
[1738939386376,0.063,202.1,202.08,13.41184853]
[1738939386672,14.75512392,202.1,202.06,4.6]
[1738939386885,0.063,202.1,202.07,13.41184853]
[1738939387467,0.063,202.1,202.08,14.69212392]
[1738939387671,0.063,202.1,202.09,28.10397245]
[1738939388262,0.063,202.1,202.09,33.05217245]
[1738939390255,0.063,202.1,202.09,169.55217245]
[1738939390678,0.063,202.1,202.09,174.15217245]
[1738939392305,0.063,202.1,202.09,159.46004853]
[1738939392466,0.063,202.1,202.09,13.41184853]
[1738939392865,0.063,202.1,202.09,18.01184853]
[1738939393888,0.063,202.1,202.09,4.6]
[1738939395088,0.063,202.1,202.09,37.65217245]
[1738939395875,0.063,202.1,202.09,18.01184853]
[1738939396188,14.75512392,202.1,202.03,0.03]
[1738939396396,14.69212392,202.08,202.04,4.6]
[1738939396588,14.69212392,202.08,202.03,0.03]
[1738939396897,14.69212392,202.05,202.03,0.03]
[1738939397078,14.69212392,202.08,202.03,0.03]
[1738939397277,14.69212392,202.06,202.03,0.03]
[1738939397482,14.69212392,202.05,202.03,0.03]
[1738939398080,14.69212392,202.04,202.03,0.03]
[1738939398798,14.69212392,202.05,202.03,0.03]
[1738939398998,3.4643,202.06,202.03,0.03]
[1738939398999,14.69212392,202.04,202.03,0.03]
[1738939399601,15.43852648,202.04,202.03,0.03]
[1738939399770,14.69212392,202.04,202.03,0.03]
[1738939400099,15.43852648,202.04,202.03,0.03]
[1738939400983,14.69212392,202.04,202.03,0.03]
[1738939401168,14.69212392,202.09,202.03,14.72212392]
[1738939401375,19.88222392,202.1,202.03,14.72212392]
[1738939401582,14.69212392,202.08,202.03,0.03]
[1738939401899,0.74640256,202.09,202.03,0.03]
[1738939402303,5.93650256,202.1,202.03,0.03]
[1738939402465,5.1901,202.1,202.03,0.03]
[1738939402873,14.69212392,202.05,202.03,0.03]
[1738939403182,14.69212392,202.04,202.03,0.03]
[1738939403582,14.69212392,202.05,202.03,0.03]
[1738939403795,14.69212392,202.07,202.03,0.03]
[1738939404182,14.69212392,202.09,202.03,0.03]
[1738939404510,14.69212392,202.07,202.03,0.03]
[1738939404794,14.69212392,202.06,202.03,500.03]
[1738939405097,14.69212392,202.07,202.03,500.03]
[1738939405705,14.69212392,202.08,202.03,500.03]
[1738939406004,1.7265,202.1,202.03,500.03]
[1738939406179,0.063,202.1,202.05,14.69212392]
[1738939407301,14.75512392,202.1,202.04,4.9494]
[1738939407480,14.69212392,202.09,202.04,4.9494]
[1738939407681,14.69212392,202.08,202.03,500.03]
[1738939407898,14.69212392,202.07,202.03,500.03]
[1738939408775,14.75512392,202.1,202.04,13.41184853]
[1738939409009,14.75512392,202.1,202.08,19.64062392]
[1738939409010,0.063,202.1,202.08,19.64062392]
[1738939409708,0.063,202.1,202.09,28.10397245]
[1738939410015,0.063,202.1,202.06,14.69212392]
[1738939410219,0.063,202.1,202.07,14.69212392]
[1738939410409,0.063,202.1,202.06,14.69212392]
[1738939410603,0.063,202.1,202.05,14.69212392]
[1738939411226,0.063,202.1,202.06,33.05287245]
[1738939411418,0.063,202.1,202.07,14.69212392]
[1738939411719,0.063,202.1,202.08,14.69212392]
[1738939411926,0.063,202.1,202.09,14.69212392]
[1738939412122,0.063,202.1,202.09,28.10397245]
[1738939412427,0.063,202.1,202.09,36.11497245]
[1738939412799,0.063,202.1,202.09,28.10397245]
[1738939413313,0.063,202.1,202.09,14.69212392]
[1738939413517,0.063,202.1,202.07,14.69212392]
[1738939413703,14.75512392,202.1,202.04,8.011]
[1738939414098,0.063,202.1,202.05,28.10397245]
[1738939414301,0.063,202.1,202.04,19.64152392]
[1738939414600,0.063,202.1,202.05,14.69212392]
[1738939414912,0.063,202.1,202.05,23.51061996]
[1738939415638,0.063,202.1,202.06,4.949]
[1738939415942,0.063,202.1,202.06,28.45961996]
[1738939416115,0.063,202.1,202.06,4.949]
[1738939416304,0.063,202.1,202.04,4.9493]
[1738939416508,23.57361996,202.1,202.04,4.63]
[1738939416913,23.51061996,202.07,202.04,0.03]
[1738939417115,23.51061996,202.05,202.04,0.03]
[1738939417827,26.97501996,202.05,202.04,0.03]
[1738939419128,30.26872252,202.05,202.04,0.03]
[1738939420107,44.68057105,202.05,202.04,0.03]
[1738939420531,43.68057105,202.05,202.04,0.03]
[1738939420908,28.52231996,202.05,202.04,0.03]
[1738939424631,26.97501996,202.05,202.04,0.03]
[1738939425344,23.51061996,202.06,202.04,0.03]
[1738939425550,0.063,202.1,202.04,23.54061996]
[1738939425731,3.5266,202.1,202.04,23.54061996]
[1738939425920,23.51061996,202.09,202.04,0.03]
[1738939426118,23.51061996,202.08,202.04,0.03]
[1738939426320,23.51061996,202.06,202.04,0.03]
[1738939426534,23.51061996,202.07,202.04,0.03]
[1738939427256,23.51061996,202.05,202.04,0.03]
[1738939427622,26.97501996,202.05,202.04,0.03]
[1738939428637,23.51061996,202.08,202.04,0.03]
[1738939428837,23.51061996,202.09,202.04,0.03]
[1738939429052,0.063,202.1,202.04,23.54061996]
[1738939429527,0.063,202.1,202.05,4.9492]
[1738939429738,0.063,202.1,202.04,23.54061996]
[1738939430054,0.063,202.1,202.04,28.49011996]
[1738939430256,23.51061996,202.09,202.04,0.03]
[1738939430746,23.51061996,202.08,202.04,0.03]
[1738939432025,26.97461996,202.08,202.04,0.03]
[1738939432744,0.063,202.1,202.04,0.03]
[1738939432938,0.063,202.1,202.07,23.51061996]
[1738939433137,0.063,202.1,202.04,0.03]
[1738939433138,0.063,202.1,202.05,23.51061996]
[1738939433725,0.063,202.1,202.06,23.51061996]
[1738939434053,0.063,202.1,202.05,28.45981996]
[1738939434648,0.063,202.1,202.05,23.51061996]
[1738939435051,0.063,202.1,202.04,28.49001996]
[1738939435246,0.063,202.1,202.06,23.51061996]
[1738939436156,0.063,202.1,202.05,28.45971996]
[1738939436660,0.063,202.1,202.05,14.69381069]
[1738939436826,0.063,202.1,202.04,19.67331069]
[1738939438151,0.063,202.1,202.06,14.69381069]
[1738939438331,0.063,202.1,202.05,19.64301069]
[1738939438537,14.69381069,202.09,202.04,4.9794]
[1738939438743,14.75681069,202.1,202.04,19.67321069]
[1738939439354,14.69381069,202.08,202.04,0.03]
[1738939439725,0.063,202.1,202.04,0.03]
[1738939439929,14.69381069,202.08,202.04,0.03]
[1738939440139,14.69381069,202.09,202.04,0.03]
[1738939440655,14.75681069,202.1,202.04,0.03]
[1738939441029,14.75681069,202.09,202.04,0.03]
[1738939441230,14.69381069,202.06,202.04,0.03]
[1738939441431,14.69381069,202.05,202.04,0.03]
[1738939441838,14.69381069,202.06,202.04,0.03]
[1738939442035,14.69381069,202.05,202.04,0.03]
[1738939443788,15.44021325,202.05,202.04,0.03]
[1738939444177,18.90461325,202.05,202.04,0.03]
[1738939447558,1.0,202.04,202.03,0.03]
[1738939447767,29.10565922,202.04,202.03,0.03]
[1738939448459,29.10565922,202.04,202.03,0.0001]
[1738939449142,36.11975922,202.04,202.03,0.0001]
[1738939449757,39.58435922,202.04,202.03,0.0001]
[1738939450281,40.33076178,202.04,202.03,0.0001]
[1738939450889,1.0,202.0,201.89,4.9531]
[1738939451176,14.69381069,201.95,201.89,9.5531]
[1738939451376,14.69381069,201.95,201.88,24.24721069]
[1738939451667,14.69381069,201.96,201.9,4.9529]
[1738939451878,14.69381069,201.99,201.92,14.69381069]
[1738939452053,14.69381069,202.05,201.98,14.69381069]
[1738939452477,4.21050256,202.07,201.95,7.6835]
[1738939452857,20.0,202.06,201.95,7.6835]
[1738939453075,14.69381069,202.02,201.95,22.37731069]
[1738939453881,14.69381069,202.03,201.96,19.64521069]
[1738939454072,14.69381069,202.06,201.99,14.69381069]
[1738939454470,14.69381069,202.04,201.97,14.69381069]
[1738939454783,14.69381069,202.03,201.96,19.64521069]
[1738939454955,14.69381069,202.02,201.96,4.9514]
[1738939455153,14.69381069,202.03,201.96,19.64521069]
[1738939455572,14.69381069,202.02,201.96,4.9514]
[1738939455774,14.69381069,202.04,201.96,19.64521069]
[1738939455969,34.69381069,202.06,201.99,14.69381069]
[1738939456173,20.0,202.06,202.0,14.69381069]
[1738939456374,14.69381069,202.06,201.99,14.69381069]
[1738939456679,14.69381069,202.05,201.98,14.69381069]
[1738939457267,14.69381069,202.03,201.96,19.64521069]
[1738939457665,14.69381069,202.02,201.96,4.9514]
[1738939458253,14.69381069,202.02,201.95,26.97731069]
[1738939458587,14.69381069,202.01,201.95,12.2835]
[1738939458798,14.69381069,202.02,201.96,14.69381069]
[1738939458996,14.69381069,202.03,201.96,14.69381069]
[1738939459158,14.69381069,202.02,201.96,14.69381069]
[1738939459586,14.69381069,202.03,201.96,14.69381069]
[1738939459888,14.69381069,202.05,201.98,14.69381069]
[1738939460187,0.063,202.09,202.04,14.69381069]
[1738939460365,0.063,202.09,202.07,14.69381069]
[1738939460553,0.063,202.09,202.08,14.69381069]
[1738939460753,0.063,202.09,202.07,14.69381069]
[1738939461251,0.063,202.09,202.08,32.70565922]
[1738939462596,0.063,202.09,202.08,9.5485]
[1738939462797,0.063,202.09,202.08,4.6]
[1738939463164,0.063,202.09,202.07,24.24241069]
[1738939464283,0.063,202.09,202.07,4.6]
[1738939465699,0.063,202.09,202.05,7.9903]
[1738939466973,0.063,202.09,202.06,14.69381069]
[1738939467501,0.063,202.09,202.05,32.23321069]
[1738939468096,0.063,202.09,202.05,17.5394]
[1738939468394,0.063,202.09,202.05,4.6]
[1738939468592,14.69381069,202.07,202.05,4.6]
[1738939468802,14.69381069,202.07,202.01,14.69381069]
[1738939468999,0.063,202.09,202.03,14.69381069]
[1738939469296,14.69381069,202.07,202.0,27.72951069]
[1738939469466,14.69381069,202.07,202.0,32.30951069]
[1738939469670,14.69381069,202.05,202.0,4.58]
[1738939469895,14.69381069,202.05,201.99,4.9507]
[1738939470119,18.15811069,202.06,201.99,14.69381069]
[1738939470322,14.69381069,202.04,201.98,9.5309]
[1738939470482,14.69381069,202.03,201.98,9.5309]
[1738939470795,14.69381069,202.02,201.98,4.58]
[1738939470995,14.69381069,202.02,201.96,0.03]
[1738939471181,14.69381069,202.0,201.96,0.03]
[1738939471381,13.87140256,202.06,201.96,0.03]
[1738939471382,14.69381069,201.98,201.96,0.03]
[1738939471607,1.0,202.04,201.96,0.03]
[1738939471608,14.69381069,201.97,201.96,0.03]
[1738939471980,18.90601325,201.97,201.96,0.03]
[1738939472817,27.75982392,201.97,201.96,0.03]
[1738939473915,20.0,201.92,201.88,0.03]
[1738939474223,23.54762136,201.89,201.88,0.03]
[1738939474803,24.29402392,201.91,201.88,0.03]
[1738939475200,24.29402392,201.95,201.88,23.57762136]
[1738939475495,23.54762136,201.92,201.88,0.03]
[1738939476101,23.54762136,201.91,201.88,0.03]
[1738939476413,23.54762136,201.92,201.88,0.03]
[1738939476619,23.54762136,201.94,201.88,0.03]
[1738939476914,23.54762136,201.96,201.89,23.54762136]
[1738939477098,3.4658,201.97,201.88,0.03]
[1738939477099,23.54762136,201.97,201.9,23.54762136]
[1738939477293,23.54762136,202.0,201.94,23.54762136]
[1738939478016,23.54762136,202.0,201.93,23.54762136]
[1738939478185,8.71576596,202.05,201.98,23.54762136]
[1738939478186,31.26338732,202.05,201.98,23.54762136]
[1738939478390,31.26338732,202.05,201.93,4.9521]
[1738939478391,31.26338732,202.05,201.99,23.54762136]
[1738939478615,31.26338732,202.05,201.98,23.54762136]
[1738939479127,7.71576596,202.05,202.01,23.54762136]
[1738939479929,7.71576596,202.05,201.99,23.54762136]
[1738939480096,31.26338732,202.05,201.99,28.49832136]
[1738939480308,23.54762136,202.03,201.97,23.54762136]
[1738939480520,23.54762136,202.04,201.98,23.54762136]
[1738939480890,23.54762136,202.03,201.97,28.49862136]
[1738939481207,23.54762136,202.04,201.97,28.49862136]
[1738939481606,23.54762136,202.05,201.98,23.54762136]
[1738939482203,0.063,202.06,202.0,23.54762136]
[1738939482603,23.61062136,202.06,202.0,23.54762136]
[1738939483916,23.54762136,202.04,201.97,23.54762136]
[1738939484119,23.54762136,202.04,201.98,23.54762136]
[1738939484321,23.54762136,202.05,201.98,23.54762136]
[1738939484896,23.54762136,202.04,201.97,23.54762136]
[1738939485224,23.54762136,202.04,201.97,28.49882136]
[1738939485390,23.54762136,202.04,201.98,23.54762136]
[1738939485594,0.063,202.06,202.01,23.54762136]
[1738939485798,0.063,202.06,202.03,23.54762136]
[1738939486322,0.063,202.06,202.02,23.54762136]
[1738939486521,0.063,202.06,201.98,36.95946989]
[1738939486728,23.61062136,202.06,201.99,23.54762136]
[1738939486892,23.61062136,202.06,202.0,4.9504]
[1738939487095,0.063,202.06,202.02,23.54762136]
[1738939487429,0.063,202.06,202.05,23.54762136]
[1738939487830,0.063,202.06,202.05,36.95946989]
[1738939488427,0.0001,202.06,202.05,37.70161109]
[1738939488999,0.0001,202.06,202.05,36.95946989]
[1738939489313,0.063,202.1,202.09,20.0]
[1738939489614,0.063,202.1,202.09,61.53946989]
[1738939489795,0.0001,202.1,202.09,85.08709125]
[1738939490296,0.0001,202.1,202.09,61.53946989]
[1738939491306,0.0001,202.1,202.09,66.48766989]
[1738939492228,0.0001,202.1,202.09,61.90766989]
[1738939492398,0.0001,202.1,202.09,66.48766989]
[1738939492735,0.0001,202.1,202.09,4.58]
[1738939493333,0.0001,202.1,202.09,9.5282]
[1738939493513,0.0001,202.1,202.09,33.07582136]
[1738939493704,0.0001,202.1,202.09,46.48766989]
[1738939495435,0.0001,202.1,202.09,33.07582136]
[1738939496141,0.0001,202.1,202.09,9.5282]
[1738939496517,0.0001,202.1,202.09,4.9482]
[1738939496824,0.0001,202.1,202.05,23.54762136]
[1738939497023,0.0001,202.1,202.06,4.58]
[1738939497222,0.0001,202.1,202.04,23.54762136]
[1738939497431,0.0001,202.1,202.04,28.12762136]
[1738939498013,0.0001,202.1,202.05,4.9492]
[1738939498218,0.0001,202.1,202.08,23.54762136]
[1738939498423,0.0001,202.1,202.09,23.54762136]
[1738939499435,0.0001,202.1,202.09,28.49582136]
[1738939499628,0.0001,202.1,202.09,4.9482]
[1738939499825,0.0001,202.1,202.05,23.54762136]
[1738939500026,0.0001,202.1,202.04,9.5292]
[1738939500027,23.54772136,202.1,202.04,9.5292]
[1738939500239,23.54762136,202.08,202.02,23.54762136]
[1738939500445,23.54762136,202.07,202.0,28.49782136]
[1738939500619,23.54762136,202.08,202.01,28.12762136]
[1738939500819,23.54762136,202.05,202.01,4.58]
[1738939501020,23.54762136,202.07,202.01,4.58]
[1738939501222,23.54762136,202.09,202.02,23.54762136]
[1738939501622,23.54762136,202.09,202.02,28.49752136]
[1738939502118,0.0001,202.1,202.06,23.54762136]
[1738939502324,0.0001,202.1,202.08,23.54762136]
[1738939502737,0.0001,202.1,202.09,36.95946989]
[1738939503130,0.0001,202.1,202.08,23.54762136]
[1738939503528,0.0001,202.1,202.09,28.49582136]
[1738939503864,0.0001,202.1,202.09,41.90766989]
[1738939504427,0.0001,202.1,202.09,65.45529125]
[1738939504757,0.0001,202.12,202.1,13.41184853]
[1738939504954,0.0001,202.12,202.11,23.54762136]
[1738939505153,0.0001,202.12,202.11,36.95946989]
[1738939505321,0.0001,202.13,202.12,38.56896989]
[1738939505528,0.063,202.16,202.15,38.35864853]
[1738939505738,0.063,202.16,202.15,66.48626989]
[1738939506059,0.063,202.16,202.15,53.07442136]
[1738939506224,0.063,202.16,202.15,66.48626989]
[1738939509532,23.54762136,202.32,202.19,33.41184853]
[1738939509825,23.54762136,202.3,202.19,56.95946989]
[1738939510334,23.54762136,202.31,202.19,56.95946989]
[1738939510844,23.54762136,202.31,202.19,61.90526989]
[1738939511155,23.54762136,202.31,202.19,72.04104272]
[1738939511468,23.54762136,202.33,202.26,23.54762136]
[1738939511754,23.54762136,202.32,202.26,23.54762136]
[1738939511945,23.54762136,202.33,202.26,23.54762136]
[1738939512148,23.54762136,202.36,202.29,23.54762136]
[1738939512839,23.54762136,202.36,202.29,28.49092136]
[1738939513045,27.00632136,202.39,202.33,23.54762136]
[1738939513263,27.00632136,202.39,202.29,4.9433]
[1738939513264,23.54762136,202.42,202.3,23.54762136]
[1738939513449,0.74640256,202.43,202.36,23.54762136]
[1738939513450,27.00552136,202.43,202.36,23.54762136]
[1738939513652,3.4579,202.43,202.37,23.54762136]
[1738939513834,23.54762136,202.42,202.31,13.41184853]
[1738939514157,23.54762136,202.41,202.34,23.54762136]
[1738939514457,23.54762136,202.36,202.3,23.54762136]
[1738939514659,23.54762136,202.35,202.28,34.51632136]
[1738939514840,23.54762136,202.34,202.28,4.58]
[1738939515044,3.4596,202.34,202.26,4.58]
[1738939515252,23.54762136,202.31,202.25,23.54762136]
[1738939515554,23.54762136,202.31,202.2,23.54762136]
[1738939515555,23.54762136,202.28,202.24,4.58]
[1738939515748,23.54762136,202.25,202.24,4.58]
[1738939515941,23.54762136,202.27,202.2,23.54762136]
[1738939516139,0.74640256,202.33,202.22,13.41184853]
[1738939516336,3.4596,202.34,202.22,13.41184853]
[1738939516637,3.459,202.37,202.25,20.0]
[1738939516846,0.74640256,202.41,202.27,13.41184853]
[1738939516847,3.4583,202.41,202.27,13.41184853]
[1738939517140,3.4581,202.42,202.29,13.41184853]
[1738939517337,3.4578,202.44,202.38,23.54762136]
[1738939517761,47.00542136,202.44,202.37,28.12762136]
[1738939517958,27.00542136,202.44,202.38,23.54762136]
[1738939518267,32.19002136,202.5,202.38,23.54762136]
[1738939518268,16.43153192,202.55,202.43,23.54762136]
[1738939518472,16.43153192,202.55,202.4,23.54762136]
[1738939518473,23.54762136,202.52,202.46,23.54762136]
[1738939518637,3.5192,202.54,202.47,23.54762136]
[1738939518837,27.06682136,202.54,202.47,23.54762136]
[1738939519139,0.74640256,202.53,202.42,13.41184853]
[1738939519356,1.0,202.52,202.38,1.6014]
[1738939519568,1.0,202.5,202.39,4.58]
[1738939519858,20.0,202.48,202.39,4.58]
[1738939520159,23.54762136,202.49,202.42,23.54762136]
[1738939520357,23.54762136,202.5,202.43,23.54762136]
[1738939520547,0.74640256,202.53,202.41,23.54762136]
[1738939520548,23.54762136,202.48,202.41,23.54762136]
[1738939520744,23.54762136,202.47,202.41,23.54762136]
[1738939521059,23.54762136,202.45,202.39,4.58]
[1738939521967,0.74640256,202.49,202.39,28.12762136]
[1738939522164,23.54762136,202.47,202.4,23.54762136]
[1738939522352,27.00432136,202.5,202.43,23.54762136]
[1738939523179,23.54762136,202.49,202.42,23.54762136]
[1738939523485,23.54762136,202.46,202.39,28.12762136]
[1738939523783,23.54762136,202.47,202.4,23.54762136]
[1738939524463,23.54762136,202.45,202.39,4.58]
[1738939525154,23.54762136,202.46,202.39,28.12762136]
[1738939525350,23.57762136,202.5,202.43,23.54762136]
[1738939525555,23.54762136,202.48,202.42,23.54762136]
[1738939525774,3.4868,202.5,202.43,23.54762136]
[1738939525949,0.03,202.5,202.45,23.54762136]
[1738939526151,0.03,202.5,202.4,13.41184853]
[1738939526152,0.03,202.5,202.41,0.74088953]